fUSD/lending_fUSD_20240927
["ID","MTS","AMOUNT","RATE_DAILY","PERIOD"]
[339305733,1727443839359,-500.0,0.00011882,2]
[339305735,1727443839370,-500.0,0.00011882,2]
[339305737,1727443839381,-1177.58,0.00011882,2]
[339305738,1727443839392,-500.0,0.00011882,2]
[339305739,1727443839403,-794.14,0.00011882,2]
[339305740,1727443839414,-794.14,0.00011882,2]
[339305741,1727443839424,-794.14,0.00011882,2]
[339305742,1727443839435,-500.0,0.00011882,2]
[339305743,1727443839446,-794.14,0.00011882,2]
[339305785,1727443839943,-500.0,0.00011882,2]
[339305789,1727443839976,-794.14,0.00011882,2]
[339305792,1727443839995,-500.0,0.00011882,2]
[339305794,1727443840008,-500.0,0.00011882,2]
[339305796,1727443840018,-500.0,0.00011882,2]
[339305798,1727443840027,-500.0,0.00011882,2]
[339305800,1727443840037,-466.46,0.00011882,2]
[339305802,1727443840047,-500.0,0.00011882,2]
[339305804,1727443840056,-500.0,0.00011882,2]
[339305806,1727443840065,-500.0,0.00011882,2]
[339305808,1727443840075,-500.0,0.00011882,2]
[339305810,1727443840085,-500.0,0.00011882,2]
[339305812,1727443840094,-500.0,0.00011882,2]
[339305814,1727443840104,-500.0,0.00011882,2]
[339305816,1727443840113,-534.41,0.00011882,2]
[339305818,1727443840123,-500.0,0.00011882,2]
[339305820,1727443840132,-500.0,0.00011882,2]
[339305822,1727443840141,-500.0,0.00011882,2]
[339305824,1727443840151,-500.0,0.00011882,2]
[339305826,1727443840160,-500.0,0.00011882,2]
[339305828,1727443840169,-500.0,0.00011882,2]
[339305830,1727443840179,-500.0,0.00011882,2]
[339305832,1727443840188,-500.0,0.00011882,2]
[339305834,1727443840197,-923.0926026,0.00011882,2]
[339305836,1727443840206,-500.0,0.00011882,2]
[339305838,1727443840215,-500.0,0.00011882,2]
[339305840,1727443840225,-500.0,0.00011882,2]
[339305842,1727443840234,-500.0,0.00011882,2]
[339305845,1727443840245,-500.0,0.00011882,2]
[339305848,1727443840255,-500.0,0.00011882,2]
[339305850,1727443840264,-500.0,0.00011882,2]
[339305852,1727443840273,-200.98,0.00011882,2]
[339305854,1727443840282,-500.0,0.00011882,2]
[339305856,1727443840291,-500.0,0.00011882,2]
[339305859,1727443840300,-500.0,0.00011882,2]
[339305861,1727443840310,-269.78,0.00011882,2]
[339305863,1727443840319,-500.0,0.00011882,2]
[339305865,1727443840329,-500.0,0.00011882,2]
[339305867,1727443840339,-500.0,0.00011882,2]
[339305869,1727443840348,-500.0,0.00011882,2]
[339305871,1727443840358,-500.0,0.00011882,2]
[339305873,1727443840367,-500.0,0.00011882,2]
[339305875,1727443840376,-500.0,0.00011882,2]
[339305877,1727443840386,-500.0,0.00011882,2]
[339305879,1727443840395,-500.0,0.00011882,2]
[339305881,1727443840405,-500.0,0.00011882,2]
[339305883,1727443840414,-500.0,0.00011882,2]
[339305884,1727443840423,-500.0,0.00011882,2]
[339305886,1727443840433,-500.0,0.00011882,2]
[339305888,1727443840442,-500.0,0.00011882,2]
[339305890,1727443840451,-500.0,0.00011882,2]
[339305892,1727443840460,-500.0,0.00011882,2]
[339305894,1727443840471,-500.0,0.00011882,2]
[339305896,1727443840480,-500.0,0.00011882,2]
[339305898,1727443840490,-500.0,0.00011882,2]
[339305900,1727443840504,-500.0,0.00011882,2]
[339305902,1727443840513,-500.0,0.00011882,2]
[339305904,1727443840523,-3440.8981932,0.00011882,2]
[339305906,1727443840532,-500.0,0.00011882,2]
[339305908,1727443840541,-500.0,0.00011882,2]
[339305910,1727443840550,-223.7,0.00011882,2]
[339305912,1727443840559,-500.0,0.00011882,2]
[339305914,1727443840568,-500.0,0.00011882,2]
[339305916,1727443840577,-500.0,0.00011882,2]
[339305918,1727443840587,-500.0,0.00011882,2]
[339305920,1727443840597,-795.48,0.00011882,2]
[339305922,1727443840606,-500.0,0.00011882,2]
[339305924,1727443840616,-795.48,0.00011882,2]
[339305926,1727443840625,-795.48,0.00011882,2]
[339305928,1727443840634,-795.48,0.00011882,2]
[339305930,1727443840643,-795.48,0.00011882,2]
[339305932,1727443840652,-795.48,0.00011882,2]
[339305933,1727443840661,-500.0,0.00011882,2]
[339305935,1727443840670,-500.0,0.00011882,2]
[339305937,1727443840680,-500.0,0.00011882,2]
[339305939,1727443840689,-566.69,0.00011882,2]
[339305940,1727443840698,-500.0,0.00011882,2]
[339305941,1727443840711,-500.0,0.00011882,2]
[339305942,1727443840720,-500.0,0.00011882,2]
[339305944,1727443840729,-500.0,0.00011882,2]
[339305945,1727443840739,-500.0,0.00011882,2]
[339305947,1727443840752,-202.04368614,0.00011882,2]
[339305949,1727443840761,-500.0,0.00011882,2]
[339305951,1727443840770,-500.0,0.00011882,2]
[339305953,1727443840781,-500.0,0.00011882,2]
[339305955,1727443840790,-500.0,0.00011882,2]
[339305957,1727443840799,-500.0,0.00011882,2]
[339305959,1727443840808,-500.0,0.00011882,2]
[339305961,1727443840817,-500.0,0.00011882,2]
[339305962,1727443840827,-500.0,0.00011882,2]
[339305964,1727443840836,-500.0,0.00011882,2]
[339305966,1727443840845,-500.0,0.00011882,2]
[339305968,1727443840854,-500.0,0.00011882,2]
[339305970,1727443840863,-500.0,0.00011882,2]
[339305972,1727443840873,-500.0,0.00011882,2]
[339305974,1727443840882,-500.0,0.00011882,2]
[339305976,1727443840891,-500.0,0.00011882,2]
[339305978,1727443840900,-500.0,0.00011882,2]
[339305980,1727443840909,-500.0,0.00011882,2]
[339305982,1727443840918,-500.0,0.00011882,2]
[339305984,1727443840927,-500.0,0.00011882,2]
[339305986,1727443840936,-500.0,0.00011882,2]
[339305988,1727443840945,-500.0,0.00011882,2]
[339305990,1727443840955,-500.0,0.00011882,2]
[339305992,1727443840963,-500.0,0.00011882,2]
[339305994,1727443840973,-500.0,0.00011882,2]
[339305996,1727443840982,-926.5810664,0.00011882,2]
[339305997,1727443840991,-500.0,0.00011882,2]
[339305999,1727443841001,-500.0,0.00011882,2]
[339306001,1727443841011,-500.0,0.00011882,2]
[339306002,1727443841020,-500.0,0.00011882,2]
[339306004,1727443841029,-500.0,0.00011882,2]
[339306006,1727443841039,-500.0,0.00011882,2]
[339306008,1727443841048,-444.18,0.00011882,2]
[339306010,1727443841057,-1427.1,0.00011882,2]
[339306011,1727443841067,-500.0,0.00011882,2]
[339306013,1727443841076,-500.0,0.00011882,2]
[339306015,1727443841085,-1427.1,0.00011882,2]
[339306017,1727443841094,-500.0,0.00011882,2]
[339306018,1727443841103,-500.0,0.00011882,2]
[339306020,1727443841112,-454.31,0.00011882,2]
[339306022,1727443841121,-1427.1,0.00011882,2]
[339306024,1727443841131,-500.0,0.00011882,2]
[339306026,1727443841140,-500.0,0.00011882,2]
[339306028,1727443841149,-1427.1,0.00011882,2]
[339306029,1727443841158,-500.0,0.00011882,2]
[339306031,1727443841167,-500.0,0.00011882,2]
[339306033,1727443841177,-1427.1,0.00011882,2]
[339306035,1727443841186,-500.0,0.00011882,2]
[339306036,1727443841195,-500.0,0.00011882,2]
[339306038,1727443841204,-1427.1,0.00011882,2]
[339306040,1727443841213,-500.0,0.00011882,2]
[339306041,1727443841222,-501.01095904,0.00011882,2]
[339306043,1727443841233,-500.0,0.00011882,2]
[339306045,1727443841242,-887.5198048,0.00011883,2]
[339306047,1727443841255,-734946.62227082,0.00011883,2]
[339306081,1727443841684,-2973.57485311,0.00011883,2]
[339306082,1727443841696,-7279.41342549,0.00011883,2]
[339306083,1727443841712,-31499.12898451,0.00011883,2]
[339306084,1727443841723,-5146.02669942,0.00011883,2]
[339306085,1727443841734,-44775.30358361,0.00011883,2]
[339306086,1727443841749,-522.54170576,0.00011883,2]
[339306087,1727443841760,-1720.75393469,0.00011883,2]
[339306088,1727443841771,-5878.35106938,0.00011883,2]
[339306089,1727443841783,-19099.21,0.00011883,2]
[339306090,1727443841794,-6057.23386798,0.00011883,2]
[339306091,1727443841805,-13121.56862149,0.00011883,2]
[339306092,1727443841816,-24654.16122351,0.00011883,2]
[339306093,1727443841827,-22243.24876,0.00011883,2]
[339306094,1727443841838,-421.434,0.00011883,2]
[339306095,1727443841853,-3353.94450525,0.00011883,2]
[339306096,1727443841864,-667.24633407,0.00011883,2]
[339306097,1727443841875,-3843.61361225,0.00011883,2]
[339306098,1727443841886,-3704.1009641,0.00011883,2]
[339306099,1727443841910,-11397.85447334,0.00011883,2]
[339306100,1727443841922,-838.63282662,0.00011883,2]
[339306101,1727443841933,-800.67916805,0.00011883,2]
[339306102,1727443841944,-504.3514221,0.00011883,2]
[339306103,1727443841956,-561.5347207,0.00011883,2]
[339306104,1727443841967,-794.86802,0.00011883,2]
[339306105,1727443841979,-1152.06794487,0.00011883,2]
[339306106,1727443842002,-135717.78159402,0.00011883,2]
[339306107,1727443842013,-459.01463883,0.00011883,2]
[339306108,1727443842024,-2146.17360397,0.00011883,2]
[339306109,1727443842036,-5974.7917284,0.00011883,2]
[339306110,1727443842229,-202.5316843,0.00011785,2]
[339306111,1727443842238,-111.25630897,0.00011883,2]
[339306112,1727443842436,-793.38664399,0.00011883,2]
[339306113,1727443842453,-950.0,0.00011883,2]
[339306114,1727443842464,-3406.05082035,0.00011883,2]
[339306115,1727443842476,-14769.35656793,0.00011883,2]
[339306116,1727443842487,-322.50000001,0.00011883,2]
[339306117,1727443842500,-655.39084269,0.00011883,2]
[339306118,1727443842511,-116457.35725128,0.00011883,2]
[339306119,1727443842522,-470.59406132,0.00011883,2]
[339306120,1727443842533,-582.83643837,0.00011883,2]
[339306121,1727443842544,-1979.79404271,0.00011883,2]
[339306122,1727443842555,-1156.2,0.00011883,2]
[339306123,1727443842567,-2689.99555988,0.00011883,2]
[339306124,1727443842581,-333.81892786,0.00011883,2]
[339306125,1727443842593,-440.47835358,0.00011883,2]
[339306126,1727443842816,-1332.6435,0.00011883,2]
[339306127,1727443842835,-187.55,0.00011882,2]
[339306128,1727443842848,-862.55,0.00011883,2]
[339306129,1727443842860,-1636.7999998,0.00011883,2]
[339306130,1727443842873,-574.11024673,0.00011883,2]
[339306131,1727443842885,-2967.11830626,0.00011883,2]
[339306132,1727443842897,-1041.85,0.00011883,2]
[339306133,1727443842914,-473.28023069,0.00011882,2]
[339306134,1727443842926,-26.71976931,0.00011882,2]
[339306135,1727443842935,-2458.71103732,0.00011883,2]
[339306136,1727443842947,-460.63094984,0.00011883,2]
[339306137,1727443842958,-11155.02945712,0.00011883,2]
[339306138,1727443842975,-1028.443,0.00011883,2]
[339306139,1727443842988,-1182.8,0.00011883,2]
[339306140,1727443843003,-1279.15335669,0.00011883,2]
[339306141,1727443843014,-271.37002482,0.00011883,2]
[339306142,1727443843026,-23188.56665394,0.00011883,2]
[339306143,1727443843036,-2269.3812277,0.00011883,2]
[339306144,1727443843046,-10139.99103495,0.00011883,2]
[339306145,1727443843057,-3084.36909757,0.00011883,2]
[339306146,1727443843070,-1195.16112444,0.00011883,2]
[339306147,1727443843082,-4702.36441274,0.00011883,2]
[339306148,1727443843093,-1223.33,0.00011883,2]
[339306149,1727443843103,-500.0,0.00011883,2]
[339306150,1727443843114,-3218.22598098,0.00011883,2]
[339306151,1727443843125,-75.22401902,0.00011883,2]
[339306152,1727443843135,-1857.54,0.00011883,2]
[339306153,1727443843144,-402.32,0.00011883,2]
[339306154,1727443843154,-1146.87,0.00011883,2]
[339306155,1727443843164,-3052.32,0.00011883,2]
[339306156,1727443843174,-5732.88,0.00011883,2]
[339306157,1727443843183,-500.0,0.00011883,2]
[339306158,1727443843192,-500.0,0.00011883,2]
[339306159,1727443843202,-500.0,0.00011883,2]
[339306161,1727443843211,-308.1063268,0.00011883,2]
[339306164,1727443843220,-1800.14,0.00011883,2]
[339306165,1727443843230,-165.09965418,0.00011883,2]
[339306166,1727443843250,-417.21034582,0.00011883,2]
[339306167,1727443843266,-1800.14,0.00011883,2]
[339306168,1727443843275,-582.31,0.00011883,2]
[339306170,1727443843285,-1313.78,0.00011883,2]
[339306172,1727443843294,-1313.78,0.00011883,2]
[339306174,1727443843303,-1152.28,0.00011883,2]
[339306175,1727443843313,-1152.28,0.00011883,2]
[339306176,1727443843322,-1061.08,0.00011883,2]
[339306177,1727443843331,-1932.86958754,0.00011883,2]
[339306179,1727443843343,-62.23041246,0.00011883,2]
[339306181,1727443843352,-538.47222002,0.00011883,2]
[339306183,1727443843363,-2890.27777998,0.00011883,2]
[339306184,1727443843373,-3428.75,0.00011883,2]
[339306185,1727443843383,-1177.58,0.00011883,2]
[339306186,1727443843392,-1177.58,0.00011883,2]
[339306187,1727443843402,-794.14,0.00011883,2]
[339306188,1727443843411,-794.14,0.00011883,2]
[339306189,1727443843420,-500.0,0.00011883,2]
[339306190,1727443843430,-500.0,0.00011883,2]
[339306191,1727443843439,-500.0,0.00011883,2]
[339306192,1727443843448,-500.0,0.00011883,2]
[339306193,1727443843457,-500.0,0.00011883,2]
[339306194,1727443843467,-500.0,0.00011883,2]
[339306195,1727443843476,-795.48,0.00011883,2]
[339306196,1727443843485,-795.48,0.00011883,2]
[339306197,1727443843496,-500.0,0.00011883,2]
[339306198,1727443843506,-1427.1,0.00011883,2]
[339306199,1727443843516,-500.0,0.00011883,2]
[339306200,1727443843525,-500.0,0.00011883,2]
[339306201,1727443843535,-500.0,0.00011883,2]
[339306202,1727443843544,-1427.1,0.00011883,2]
[339306203,1727443843553,-500.0,0.00011884,2]
[339306204,1727443843563,-500.0,0.00011884,2]
[339306205,1727443843572,-500.0,0.00011884,2]
[339306206,1727443843581,-583.66,0.00011884,2]
[339306207,1727443843591,-500.0,0.00011884,2]
[339306208,1727443843600,-500.0,0.00011884,2]
[339306209,1727443843609,-500.0,0.00011884,2]
[339306210,1727443843619,-500.0,0.00011884,2]
[339306211,1727443843627,-500.0,0.00011884,2]
[339306212,1727443843637,-500.0,0.00011884,2]
[339306213,1727443843646,-500.0,0.00011884,2]
[339306214,1727443843655,-500.0,0.00011884,2]
[339306215,1727443843665,-500.0,0.00011884,2]
[339306216,1727443843674,-500.0,0.00011884,2]
[339306217,1727443843683,-500.0,0.00011884,2]
[339306218,1727443843693,-500.0,0.00011884,2]
[339306219,1727443843703,-500.0,0.00011884,2]
[339306220,1727443843713,-500.0,0.00011884,2]
[339306221,1727443843723,-500.0,0.00011884,2]
[339306223,1727443843732,-500.0,0.00011884,2]
[339306224,1727443843743,-500.0,0.00011884,2]
[339306225,1727443843754,-500.0,0.00011884,2]
[339306226,1727443843764,-500.0,0.00011884,2]
[339306227,1727443843773,-500.0,0.00011884,2]
[339306228,1727443843783,-500.0,0.00011884,2]
[339306230,1727443843792,-500.0,0.00011884,2]
[339306232,1727443843802,-500.0,0.00011884,2]
[339306234,1727443843811,-500.0,0.00011884,2]
[339306236,1727443843820,-500.0,0.00011884,2]
[339306238,1727443843830,-501.68364512,0.00011884,2]
[339306239,1727443843840,-352.97949746,0.00011884,2]
[339306241,1727443843849,-500.0,0.00011884,2]
[339306243,1727443843860,-500.0,0.00011884,2]
[339306245,1727443843870,-242.49230534,0.00011884,2]
[339306247,1727443843879,-500.0,0.00011884,2]
[339306248,1727443843890,-225.79901624,0.00011884,2]
[339306250,1727443843899,-500.0,0.00011884,2]
[339306253,1727443843908,-500.0,0.00011884,2]
[339306254,1727443843918,-500.0,0.00011884,2]
[339306256,1727443843928,-199.03,0.00011884,2]
[339306258,1727443843938,-500.0,0.00011884,2]
[339306260,1727443843948,-611.87,0.00011884,2]
[339306261,1727443843958,-500.0,0.00011884,2]
[339306263,1727443843967,-500.0,0.00011884,2]
[339306264,1727443843977,-500.0,0.00011884,2]
[339306266,1727443843987,-500.0,0.00011884,2]
[339306269,1727443843998,-500.0,0.00011884,2]
[339306271,1727443844008,-500.0,0.00011884,2]
[339306273,1727443844017,-500.54692581,0.00011884,2]
[339306274,1727443844026,-500.0,0.00011884,2]
[339306275,1727443844035,-528.43,0.00011884,2]
[339306276,1727443844045,-691.53,0.00011884,2]
[339306277,1727443844055,-500.0,0.00011884,2]
[339306279,1727443844065,-500.0,0.00011884,2]
[339306281,1727443844074,-500.0,0.00011884,2]
[339306282,1727443844084,-500.0,0.00011884,2]
[339306284,1727443844093,-501.69739888,0.00011884,2]
[339306286,1727443844103,-500.0,0.00011884,2]
[339306288,1727443844112,-500.0,0.00011884,2]
[339306290,1727443844122,-500.0,0.00011884,2]
[339306292,1727443844131,-500.0,0.00011884,2]
[339306293,1727443844140,-500.0,0.00011884,2]
[339306294,1727443844149,-500.0,0.00011884,2]
[339306295,1727443844159,-500.0,0.00011884,2]
[339306296,1727443844168,-500.0,0.00011884,2]
[339306297,1727443844177,-500.0,0.00011884,2]
[339306298,1727443844187,-500.0,0.00011884,2]
[339306299,1727443844199,-500.0,0.00011884,2]
[339306300,1727443844209,-500.0,0.00011884,2]
[339306301,1727443844219,-500.0,0.00011884,2]
[339306302,1727443844229,-500.0,0.00011884,2]
[339306303,1727443844239,-500.0,0.00011884,2]
[339306304,1727443844248,-966.98,0.00011884,2]
[339306305,1727443844258,-500.0,0.00011884,2]
[339306306,1727443844269,-500.0,0.00011884,2]
[339306307,1727443844279,-500.0,0.00011884,2]
[339306308,1727443844290,-500.0,0.00011884,2]
[339306309,1727443844301,-500.0,0.00011884,2]
[339306310,1727443844312,-500.0,0.00011884,2]
[339306311,1727443844321,-865.93,0.00011884,2]
[339306312,1727443844333,-500.0,0.00011884,2]
[339306313,1727443844343,-500.0,0.00011884,2]
[339306314,1727443844355,-500.0,0.00011884,2]
[339306315,1727443844366,-500.0,0.00011884,2]
[339306316,1727443844377,-500.0,0.00011884,2]
[339306317,1727443844389,-500.0,0.00011884,2]
[339306318,1727443844399,-500.0,0.00011884,2]
[339306319,1727443844410,-500.0,0.00011884,2]
[339306320,1727443844421,-500.0,0.00011884,2]
[339306321,1727443844431,-666.63,0.00011884,2]
[339306322,1727443844442,-500.0,0.00011884,2]
[339306323,1727443844452,-500.0,0.00011884,2]
[339306324,1727443844464,-500.0,0.00011884,2]
[339306325,1727443844473,-257.17437948,0.00011884,2]
[339306326,1727443844482,-500.0,0.00011884,2]
[339306327,1727443844492,-500.0,0.00011884,2]
[339306328,1727443844504,-500.0,0.00011884,2]
[339306329,1727443844515,-500.0,0.00011884,2]
[339306330,1727443844526,-500.0,0.00011884,2]
[339306331,1727443844536,-832.03,0.00011884,2]
[339306332,1727443844547,-500.0,0.00011884,2]
[339306333,1727443844559,-596.49,0.00011884,2]
[339306334,1727443844568,-596.49,0.00011884,2]
[339306335,1727443844577,-500.0,0.00011884,2]
[339306336,1727443844587,-500.0,0.00011884,2]
[339306337,1727443844596,-500.0,0.00011884,2]
[339306338,1727443844605,-616.56,0.00011884,2]
[339306339,1727443844615,-702.49,0.00011884,2]
[339306340,1727443844624,-522.45,0.00011884,2]
[339306341,1727443844633,-500.0,0.00011884,2]
[339306342,1727443844643,-522.45,0.00011884,2]
[339306343,1727443844652,-500.0,0.00011884,2]
[339306344,1727443844661,-500.0,0.00011884,2]
[339306345,1727443844671,-500.0,0.00011884,2]
[339306346,1727443844680,-1632.07,0.00011884,2]
[339306347,1727443844690,-500.0,0.00011884,2]
[339306348,1727443844699,-562.26,0.00011884,2]
[339306349,1727443844712,-2249.47,0.00011884,2]
[339306350,1727443844722,-2249.47,0.00011884,2]
[339306351,1727443844731,-500.0,0.00011884,2]
[339306352,1727443844740,-500.0,0.00011884,2]
[339306353,1727443844751,-683.7,0.00011884,2]
[339306354,1727443844760,-683.7,0.00011884,2]
[339306355,1727443844769,-1166.93,0.00011884,2]
[339306356,1727443844779,-500.0,0.00011884,2]
[339306357,1727443844788,-500.0,0.00011884,2]
[339306358,1727443844797,-500.0,0.00011884,2]
[339306359,1727443844807,-500.0,0.00011884,2]
[339306360,1727443844816,-500.0,0.00011884,2]
[339306361,1727443844826,-500.0,0.00011884,2]
[339306362,1727443844836,-500.0,0.00011884,2]
[339306363,1727443844846,-536.24,0.00011884,2]
[339306364,1727443844856,-500.0,0.00011884,2]
[339306365,1727443844866,-595.91,0.00011884,2]
[339306366,1727443844875,-500.0,0.00011884,2]
[339306367,1727443844885,-500.0,0.00011884,2]
[339306368,1727443844895,-500.0,0.00011884,2]
[339306369,1727443844905,-500.0,0.00011884,2]
[339306370,1727443844915,-500.0,0.00011884,2]
[339306371,1727443844924,-500.0,0.00011884,2]
[339306372,1727443844934,-605.56,0.00011884,2]
[339306373,1727443844943,-1032.37,0.00011884,2]
[339306374,1727443844953,-500.0,0.00011884,2]
[339306375,1727443844963,-500.0,0.00011884,2]
[339306376,1727443844972,-500.0,0.00011884,2]
[339306377,1727443844981,-500.0,0.00011884,2]
[339306378,1727443844991,-500.0,0.00011884,2]
[339306379,1727443845002,-500.0,0.00011884,2]
[339306380,1727443845012,-501.56,0.00011884,2]
[339306381,1727443845022,-524.15,0.00011884,2]
[339306382,1727443845032,-865.87,0.00011884,2]
[339306383,1727443845041,-500.0,0.00011884,2]
[339306384,1727443845051,-320.44736104,0.00011884,2]
[339306385,1727443845061,-500.0,0.00011884,2]
[339306386,1727443845070,-650.61,0.00011884,2]
[339306387,1727443845080,-500.0,0.00011884,2]
[339306388,1727443845089,-500.0,0.00011884,2]
[339306389,1727443845099,-577.27,0.00011884,2]
[339306390,1727443845108,-500.0,0.00011884,2]
[339306391,1727443845118,-670.85,0.00011884,2]
[339306392,1727443845127,-500.0,0.00011884,2]
[339306393,1727443845137,-500.0,0.00011884,2]
[339306394,1727443845147,-500.0,0.00011884,2]
[339306395,1727443845156,-1470.83,0.00011884,2]
[339306396,1727443845166,-948.24,0.00011884,2]
[339306397,1727443845176,-500.0,0.00011884,2]
[339306398,1727443845186,-500.0,0.00011884,2]
[339306399,1727443845196,-1405.86,0.00011884,2]
[339306400,1727443845207,-1405.86,0.00011884,2]
[339306401,1727443845216,-1031.48,0.00011884,2]
[339306402,1727443845281,-500.0,0.00011884,2]
[339306403,1727443845292,-500.0,0.00011884,2]
[339306404,1727443845302,-708.7,0.00011884,2]
[339306405,1727443845311,-347.5746585,0.00011884,2]
[339306406,1727443845321,-500.0,0.00011884,2]
[339306407,1727443845330,-500.0,0.00011884,2]
[339306408,1727443845341,-500.0,0.00011884,2]
[339306409,1727443845351,-500.0,0.00011884,2]
[339306410,1727443845361,-228.12,0.00011884,2]
[339306411,1727443845370,-228.12,0.00011884,2]
[339306412,1727443845380,-500.0,0.00011884,2]
[339306413,1727443845390,-500.0,0.00011884,2]
[339306414,1727443845399,-981.54,0.00011884,2]
[339306415,1727443845409,-518.56,0.00011884,2]
[339306416,1727443845419,-500.0,0.00011884,2]
[339306417,1727443845428,-968.06,0.00011884,2]
[339306418,1727443845438,-500.0,0.00011884,2]
[339306419,1727443845448,-237.60059235,0.00011884,2]
[339306420,1727443845457,-500.0,0.00011884,2]
[339306421,1727443845467,-500.0,0.00011884,2]
[339306422,1727443845477,-500.0,0.00011884,2]
[339306423,1727443845487,-1709.98,0.00011884,2]
[339306424,1727443845499,-531.85,0.00011884,2]
[339306425,1727443845509,-531.85,0.00011884,2]
[339306426,1727443845518,-500.0,0.00011884,2]
[339306427,1727443845528,-566.76,0.00011884,2]
[339306428,1727443845538,-566.76,0.00011884,2]
[339306429,1727443845547,-500.0,0.00011884,2]
[339306430,1727443845556,-500.0,0.00011884,2]
[339306431,1727443845565,-500.0,0.00011884,2]
[339306432,1727443845575,-500.0,0.00011884,2]
[339306433,1727443845584,-857.68,0.00011884,2]
[339306434,1727443845594,-510.62,0.00011884,2]
[339306435,1727443845603,-510.62,0.00011884,2]
[339306436,1727443845612,-500.0,0.00011884,2]
[339306437,1727443845622,-500.0,0.00011884,2]
[339306438,1727443845631,-500.0,0.00011884,2]
[339306439,1727443845641,-500.0,0.00011884,2]
[339306440,1727443845651,-500.0,0.00011884,2]
[339306441,1727443845660,-1081.52,0.00011884,2]
[339306442,1727443845669,-500.0,0.00011884,2]
[339306443,1727443845678,-500.0,0.00011884,2]
[339306444,1727443845688,-500.0,0.00011884,2]
[339306445,1727443845698,-500.0,0.00011884,2]
[339306446,1727443845711,-500.0,0.00011884,2]
[339306447,1727443845720,-500.0,0.00011884,2]
[339306448,1727443845730,-500.0,0.00011884,2]
[339306449,1727443845739,-854.15,0.00011884,2]
[339306450,1727443845751,-500.0,0.00011884,2]
[339306451,1727443845761,-1224.2,0.00011884,2]
[339306452,1727443845770,-683.4,0.00011884,2]
[339306453,1727443845780,-683.4,0.00011884,2]
[339306454,1727443845790,-500.0,0.00011884,2]
[339306455,1727443845800,-500.0,0.00011884,2]
[339306456,1727443845809,-1410.73,0.00011884,2]
[339306457,1727443845819,-500.0,0.00011884,2]
[339306458,1727443845828,-872.1,0.00011884,2]
[339306459,1727443845839,-872.1,0.00011884,2]
[339306460,1727443845849,-794.72,0.00011884,2]
[339306461,1727443845859,-500.0,0.00011884,2]
[339306462,1727443845869,-500.0,0.00011884,2]
[339306463,1727443845878,-705.25,0.00011884,2]
[339306464,1727443845887,-500.0,0.00011884,2]
[339306465,1727443845897,-1011.01,0.00011884,2]
[339306466,1727443845907,-500.0,0.00011884,2]
[339306467,1727443845916,-500.0,0.00011884,2]
[339306468,1727443845925,-500.0,0.00011884,2]
[339306469,1727443845935,-500.0,0.00011884,2]
[339306470,1727443845944,-500.0,0.00011884,2]
[339306471,1727443845953,-804.69,0.00011884,2]
[339306472,1727443845962,-500.0,0.00011884,2]
[339306473,1727443845972,-500.0,0.00011884,2]